Workbook

Sheet Uniforme
B1: Analítico
B2: Item | C2: nº do Item | D2: Descrição Sucinta | E2: Unid. | F2: Consumo Anual Estimado | G2: Preço 1 | H2: Preço 2 | I2: Preço 3 | J2: Média Mercado | K2: Preço Total Estimado anual
A3: ASSISTENTE DE SERVIÇOS GERAIS | B3: 1 | C3: 4 | D3: Óculos de proteção, material de armação náilon, tipo lente antiembaçante, cor da lente cinza, lente de policarbonato, anti-risco, cordão de segurança, proteção UV, com certificado de aprovação do Ministério do Trabalho e Emprego, de boa qualidade. | E3: Unid. | F3: 22 | G3: 8.01 | H3: 9.79 | I3: 9.99 | J3: =(G3+H3+I3)/3 -> 9.263333333 | K3: =J3*F3 -> 203.7933333
B4: 2 | C4: 6 | D4: Par de calçado: bota de segurança, material PVC - cloreto de polivinila, sola de borracha antiderrapante, tipo cano longo, para uso de serviços gerais, com certificado de aprovação do Ministério do Trabalho e Emprego, de boa qualidade. | E4: PAR | F4: 22 | G4: 74 | H4: 38.9 | I4: 64.9 | J4: =(G4+H4+I4)/3 -> 59.26666667 | K4: =J4*F4 -> 1303.866667
B5: 3 | C5: 7 | D5: Par de calçado: botina de segurança, solado baixo, vaqueta relax, poliuretano (pu) bidensidade, hidrofugado, elástico nas laterais/recoberto, acolchoado, palmilha de couro antibacteriana, biqueira plástica, com certificado de aprovação do Ministério do Trabalho e Emprego, de boa qualidade. | E5: PAR | F5: 22 | G5: 75.81 | H5: 62.9 | I5: 79.9 | J5: 72.87 | K5: 1603.14
B6: 4 | C6: 8 | D6: Par de luvas nitrilicas para manuseio de produtos químico, com certificado de aprovação do Ministério do Trabalho e Emprego, de boa qualidade | E6: PAR | F6: 132 | G6: 9.21 | H6: 10.3 | I6: 10 | J6: 9.836666667 | K6: 1298.44
B7: 5 | C7: 9 | D7: Par de luvas de raspa de couro, cano longo, com certificado de aprovação do Ministério do Ministério do Trabalho e Emprego, de boa qualidade | E7: PAR | F7: 22 | G7: 22.9 | H7: 19.9 | I7: 28.6 | J7: 23.8 | K7: 523.6
B8: TOTAL | K8: =SUM(K3:K7) -> 4932.84
B9: Item | C9: nº do Item | D9: Descrição Sucinta | E9: Unid. | F9: Consumo Anual Estimado | G9: Preço 1 | H9: Preço 2 | I9: Preço 3 | J9: Média Mercado | K9: Preço Total Estimado anual
A10: COPEIRO | B10: 6 | C10: 10 | D10: Jaleco com botões, na cor preta com detalhes na gola e mangas em branco, contendo o emblema da Contratada bordado no lado superior esquerdo ou direito. | E10: Unid. | F10: 5 | G10: 239.7 | H10: 125.9 | I10: 149.9 | J10: 171.8333333 | K10: 859.1666667
B11: 7 | C11: 11 | D11: Calça tipo social, com zíper, na preta, fazendo conjunto com o jaleco | E11: Unid. | F11: 5 | G11: 69.6 | H11: 59.7 | I11: 67.4 | J11: 65.56666667 | K11: 327.8333333
B12: 8 | C12: 12 | D12: Blazer na cor preta, em tecido tipo microfibra, forrado internamente, inclusive na manga, com 2 (dois) bolsos inferiores, contendo oemblema da Contratada bordado no lado superior esquerdo. | E12: Unid. | F12: 5 | G12: 129.6 | H12: 129.7 | I12: 179.99 | J12: 146.43 | K12: 732.15
B13: 9 | C13: 13 | D13: Avental de cintura na cor branco | E13: Unid. | F13: 5 | G13: 59.9 | H13: 29.9 | I13: 59.96 | J13: 49.92 | K13: 249.6
B14: 10 | C14: 15 | D14: Meia social na cor natural | E14: PAR | F14: 10 | G14: 22.9 | H14: 5.4 | I14: 10.39 | J14: 12.89666667 | K14: 128.9666667
B15: 11 | C15: 16 | D15: Laço para cabelo com tela | E15: Unid. | F15: 10 | G15: 14 | H15: 9 | I15: 3.65 | J15: 8.883333333 | K15: 88.83333333
B16: 12 | C16: 18 | D16: Sapato tipo scarpin social que seja macio, palmilha de montagem em couro, solado em couro com proteção antiderrapante, salto máximo 3 cm: | E16: PAR | F16: 5 | G16: 119.99 | H16: 59.84 | I16: 62.9 | J16: 80.91 | K16: 404.55
B17: TOTAL | K17: =SUM(K10:K16) -> 2791.1
B18: Item | C18: nº do Item | D18: Descrição Sucinta | E18: Unid. | F18: Consumo Anual Estimado | G18: Preço 1 | H18: Preço 2 | I18: Preço 3 | J18: Média Mercado | K18: Preço Total Estimado anual
A19: RECEPCIONISTA | B19: 13 | C19: 19 | D19: Camisa social, mangas compridas, com botões nos punhos, contendo o emblema da Contratada bordado no lado superior esquerdo ou direito. | E19: Unid. | F19: 1 | G19: 99.1 | H19: 69.79 | I19: 99.9 | J19: 89.59666667 | K19: 89.59666667
B20: 14 | C20: 20 | D20: Camisa social, mangas 3/4, contendo o emblema da Contratada bordado no lado uperior esquerdo ou direito | E20: Unid. | F20: 1 | G20: 46.3 | H20: 54.9 | I20: 47.94 | J20: 49.71333333 | K20: 49.71333333
B21: 15 | C21: 21 | D21: Vestido tipo esporte fino, ambos com ziper na parte de trás, na cor preta, na altura do joelho, contendo emblema da Contratada bordado no lado superior esquerdo ou direito. | E21: Unid. | F21: 1 | G21: 138.8 | H21: 129 | I21: 62.99 | J21: 110.2633333 | K21: 110.2633333
B22: 16 | C22: 22 | D22: Blazer na cor preta, estilo terninho, em tecido tipo microfibra, forrado internamente, inclusive na manga, com 2 (dois) bolsos inferiores, contendo o emblema da Contratada bordado no lado superior esquerdo | E22: Unid. | F22: 1 | G22: 98.7 | H22: 69.5 | I22: 49.9 | J22: 72.7 | K22: 72.7
B23: 17 | C23: 23 | D23: Calça Comprida social, em tecido Oxford ou similar com ziper, cor preta | E23: Unid. | F23: 1 | G23: 59.9 | H23: 101.73 | I23: 126 | J23: 95.87666667 | K23: 95.87666667
B24: 18 | C24: 24 | D24: Meia calça clássica, preta, fio 20 | E24: PAR | F24: 1 | G24: 29.9 | H24: 25.9 | I24: 27.9 | J24: 27.9 | K24: 27.9
B25: 19 | C25: 25 | D25: MEIA SOCIAL ¾ NA COR NATURAL | E25: PAR | F25: 2 | G25: 22.9 | H25: 10.39 | I25: 5.4 | J25: 12.89666667 | K25: 25.79333333
B26: 20 | C26: 26 | D26: Sapato tipo scarpin social que seja macio, palmilha de montagem em couro, solado em couro com proteção antiderrapante, salto máximo 3 cm: | E26: PAR | F26: 1 | G26: 119.99 | H26: 59.84 | I26: 62.9 | J26: 80.91 | K26: 80.91
B27: 21 | C27: 27 | D27: Laço para cabelo com tela | E27: Unid. | F27: 2 | G27: 14 | H27: 9 | I27: 3.65 | J27: 8.883333333 | K27: 17.76666667
B28: 22 | C28: 28 | D28: Lenço para pescoço | E28: Unid. | F28: 1 | G28: 20 | H28: 18.9 | I28: 26 | J28: 21.63333333 | K28: 21.63333333
B29: TOTAL | K29: =SUM(K19:K28) -> 592.1533333
B30: Item | C30: nº do Item | D30: Descrição Sucinta | E30: Unid. | F30: Consumo Anual Estimado | G30: Preço 1 | H30: Preço 2 | I30: Preço 3 | J30: Média Mercado | K30: Preço Total Estimado anual
A31: ENCARREGADO | B31: 23 | C31: 30 | D31: Camisa social, mangas compridas, com botões nos punhos, contendo o emblema da Contratada bordado no lado superior esquerdo ou direito. | E31: Unid. | F31: 1 | G31: 84 | H31: 69.9 | I31: 69 | J31: 74.3 | K31: 74.3
B32: 24 | C32: 32 | D32: Camisa social, mangas curtas, contendo o emblema da Contratada Bordado no lado superior esquerdo | E32: Unid. | F32: 1 | G32: 80.75 | H32: 59.99 | I32: 69.9 | J32: 70.21333333 | K32: 70.21333333
B33: 25 | C33: 33 | D33: Blazer na cor preta, em tecido tipo microfibra, forrado internamente, inclusive na manga, com 2 (dois) bolsos inferiores, contendo o emblema da Contratada bordado no lado superior esquerdo. | E33: Unid. | F33: 1 | G33: 131.87 | H33: 151.01 | I33: 289.9 | J33: 190.9266667 | K33: 190.9266667
B34: 26 | C34: 34 | D34: Cinto em couro, modelo social, regulável | E34: Unid. | F34: 1 | G34: 69.9 | H34: 44.9 | I34: 59.9 | J34: 58.23333333 | K34: 58.23333333
B35: 27 | C35: 35 | D35: Calça Comprida social, em tecido Oxford ou similar com ziper, presilha para cinto, cor preta. | E35: Unid. | F35: 1 | G35: 129 | H35: 49.9 | I35: 77.99 | J35: 85.63 | K35: 85.63
B36: 28 | C36: 36 | D36: Meia social em tecido liso, 100% algodão, na cor preta. | E36: PAR | F36: 2 | G36: 23.44 | H36: 12.49 | I36: 21.99 | J36: 19.30666667 | K36: 38.61333333
B37: 29 | C37: 37 | D37: Sapato modelo social, de boa qualidade, em couro, na cor preta, solado antiderrapante | E37: PAR | F37: 1 | G37: 69.9 | H37: 99.9 | I37: 109.9 | J37: 93.23333333 | K37: 93.23333333
B38: TOTAL | K38: =SUM(K31:K37) -> 611.15
B39: Item | C39: nº do Item | D39: Descrição Sucinta | E39: Unid. | F39: Consumo Anual Estimado | G39: Preço 1 | H39: Preço 2 | I39: Preço 3 | J39: Média Mercado | K39: Preço Total Estimado anual
A40: GARÇOM | B40: 30 | C40: 39 | D40: Camisa social, na cor branca, mangas compridas, com botões nos punhos, contendo o emblema da Contratada bordado no lado superior esquerdo ou direito. | E40: Unid. | F40: 1 | G40: 84 | H40: 69.9 | I40: 69 | J40: 74.3 | K40: 74.3
B41: 31 | C41: 43 | D41: Blazer na cor preta, em tecido tipo microfibra, forrado internamente, inclusive na manga, com 2 (dois) bOlsos inferiores, contendo o emblema da Contratada bordado no lado superior esquerdo. | E41: Unid. | F41: 1 | G41: 131.87 | H41: 151.01 | I41: 289.9 | J41: 190.9266667 | K41: 190.9266667
B42: 32 | C42: 45 | D42: Gravata tipo borboleta, na cor preta | E42: Unid. | F42: 1 | G42: 21.6 | H42: 9.9 | I42: 16.15 | J42: 15.88333333 | K42: 15.88333333
B43: 33 | C43: 46 | D43: Cinto em couro, modelo social, regulável | E43: Unid. | F43: 1 | G43: 69.9 | H43: 44.9 | I43: 59.9 | J43: 58.23333333 | K43: 58.23333333
B44: 34 | C44: 47 | D44: Calça Comprida social, em tecido Oxford ou similar com ziper, cor preta | E44: Unid. | F44: 1 | G44: 129 | H44: 49.9 | I44: 77.99 | J44: 85.63 | K44: 85.63
B45: 35 | C45: 49 | D45: Meia social em tecido liso, 100% algodão, na cor preta. | E45: PAR | F45: 2 | G45: 23.44 | H45: 12.49 | I45: 21.99 | J45: 19.30666667 | K45: 38.61333333
B46: 36 | C46: 50 | D46: Sapato modelo social, de boa qualidade, em couro, na cor preta, solado antiderrapante. | E46: PAR | F46: 1 | G46: 69.9 | H46: 99.9 | I46: 109.9 | J46: 93.23333333 | K46: 93.23333333
B47: TOTAL | K47: =SUM(K40:K46) -> 556.82
B48: Item | C48: nº do Item | D48: Descrição Sucinta | E48: Unid. | F48: Consumo Anual Estimado | G48: Preço 1 | H48: Preço 2 | I48: Preço 3 | J48: Média Mercado | K48: Preço Total Estimado anual
A49: jardineiro | B49: 37 | C49: 55 | D49: Camisa jardinagem | E49: Unid. | F49: 2 | G49: 65.97 | H49: 39.9 | I49: 69.9 | J49: 58.59 | K49: 117.18
B50: 38 | C50: 56 | D50: Calça jardinagem | E50: Unid. | F50: 2 | G50: 69.9 | H50: 69.9 | I50: 61.9 | J50: 67.23333333 | K50: 134.4666667
B51: 39 | C51: 57 | D51: Bota EPI | E51: PAR | F51: 2 | G51: 75.81 | H51: 62.9 | I51: 79.9 | J51: 72.87 | K51: 145.74
B52: 40 | C52: 58 | D52: Chapéu jardineiro | E52: Unid. | F52: 2 | G52: 77.9 | H52: 20.59 | I52: 22.9 | J52: 40.46333333 | K52: 80.92666667
B53: 41 | C53: 60 | D53: Luva vaqueta | E53: PAR | F53: 8 | G53: 28.02 | H53: 29.9 | I53: 35.9 | J53: 31.27333333 | K53: 250.1866667
B54: 42 | C54: 61 | D54: Abafador Concha | E54: Unid. | F54: 2 | G54: 56.99 | H54: 61.66 | I54: 26.9 | J54: 48.51666667 | K54: 97.03333333 | O54: s
B55: 43 | C55: 62 | D55: Óculos Escuro EPI | E55: Unid. | F55: 4 | G55: 3.79 | H55: 3.32 | I55: 14.32 | J55: 7.143333333 | K55: 28.57333333
B56: 44 | C56: 63 | D56: Protetor Solar | E56: Unid. | F56: 4 | G56: 60.89 | H56: 32 | I56: 75.9 | J56: 56.26333333 | K56: 225.0533333
B57: TOTAL | K57: =SUM(K49:K56) -> 1079.16
D59: RESUMO
D60: ANUAL | E60: MENSAL
B61: ASG | D61: =K8 -> 4932.84 | E61: =D61/12 -> 411.07
B62: COP | D62: =K17 -> 2791.1 | E62: 232.5916667
B63: RECP | D63: =K29 -> 592.1533333 | E63: 49.34611111
B64: ENCAR | D64: =K38 -> 611.15 | E64: =D64/12 -> 50.92916667
B65: GAR | D65: =K47 -> 556.82 | E65: =D65/12 -> 46.40166667
B66: JARDI | D66: =K57 -> 1079.16 | E66: 89.93
B67: TOTAL | D67: =SUM(D61:D66) -> 10563.22333 | E67: =SUM(E61:E66) -> 880.2686111
B69: 1 - O conjunto de uniforme deverá ser entregue dentro do prazo de 10 (dez) dias, a contar do início da prestação dos serviços, nas condições determinadas pela FISCALIZAÇÃO.
B70: 2 - Todos os uniformes estarão sujeitos à prévia aprovação da CONTRATANTE e, a pedido dela, poderão ser substituídos, caso não correspondam às especificações necessárias e adequadas à execução dos serviços.
B71: 3 - Poderão ocorrer eventuais alterações nas especificações dos uniformes, quanto ao tecido, à cor, ao modelo, desde que previamente aceitas pela Administração.
B72: 4 - Os uniformes deverão ser entregues aos empregados, mediante recibo (relação nominal), cuja cópia deverá ser entregue à CONTRATANTE, sempre que solicitado pela FISCALIZAÇÃO.
B73: 5 - O custo do uniforme não poderá ser repassado ao ocupante do posto de trabalho.
B74: 6 - A CONTRATADA não poderá exigir do empregado o uniforme usado, quando da entrega dos novos.

Sheet Material e Limpeza
A2: LIMPEZA E CONSERVAÇÃO - RELAÇÃO MINIMA ESTIMADA MENSAL | C2: Unidade de medida | D2: Quantidade | E2: Preço 1 | F2: Preço 2 | G2: Preço 3 | H2: Média | I2: Valor final
A3: 40 | B3: Alcool Gel 70% hidratante , antissético,de 1ª qualidade, galão de 5 litros | C3: Unid. | D3: 4 | E3: 45.25 | F3: 59.99 | G3: 42.54 | H3: =(E3+F3+G3)/3 -> 49.26 | I3: =H3*D3 -> 197.04
A4: 41 | B4: Papel higiênico macio, de 1º qualidade, folha dupla picotada, rolo com 30 metros serem utilizados nos lavabos) • 03 fardos com 16 rolos | C4: Unid. | D4: 32 | E4: 49.48 | F4: 46.58 | G4: 25.59 | H4: 40.55 | I4: 1297.6
A5: 42 | B5: Papel higiênico macio, de 1º qualidade, folha dupla picotada, rolo com 300 metros (a serem utilizados nos banheiros coletivos) - 50 fardos com 8 rolos | C5: Unid. | D5: 60 | E5: 71.9 | F5: 59.9 | G5: 75.28 | H5: 69.02666667 | I5: 4141.6
A6: 43 | B6: Papel toalha, interfolhado, macio, hidrossolúvel, feito com 100°/• de celulose na Cor branca, folha dupla, de 1º qualidade - 140 fardos com 2000 folhas | C6: Fardo | D6: 140 | E6: 42.76 | F6: 78.9 | G6: 45.9 | H6: 55.85333333 | I6: 7819.466667
A7: 44 | B7: Sabonete líquido de 1º qualidade, perfumado, galão de 5 litros | C7: Unid. | D7: 15 | E7: 25 | F7: 39.9 | G7: 27.69 | H7: 30.86333333 | I7: 462.95 | V7: 2x
A8: 45 | B8: Água sanitária de 1ª qualidade, galão de 5 litros | C8: Unid. | D8: 15 | E8: 23.81 | F8: 23.8 | G8: 21.9 | H8: 23.17 | I8: 347.55
A9: 47 | B9: Aromatizante de ambiente - desodorizador em aerosol (bom ar) | C9: Unid. | D9: 20 | E9: 18.98 | F9: 12.99 | G9: 16.73 | H9: 16.23333333 | I9: 324.6666667 | V9: 2x
A10: 48 | B10: Balde plástico reforçado de 12 litros | C10: Unid. | D10: 36 | E10: 20.15 | F10: 14.9 | G10: 16.12 | H10: 17.05666667 | I10: 614.04
A11: 49 | B11: Balde plástico reforçado de 20 litros | C11: Unid. | D11: 36 | E11: 19.99 | F11: 20.99 | G11: 29.99 | H11: 23.65666667 | I11: 851.64
A12: 50 | B12: Balde duas águas, capacidade mínima de 40 litros-30 litros, com rodas e espremedor | C12: Unid. | D12: 5 | E12: 702.53 | F12: 492.9 | G12: 499 | H12: 564.81 | I12: 2824.05
A13: 51 | B13: Brilha Inox, scotch-Brite, lata com 420g -400ml | C13: Unid. | D13: 4 | E13: 48.51 | F13: 49.9 | G13: 59.71 | H13: 52.70666667 | I13: 210.8266667
A14: 52 | B14: Desinfetante concentrado, galão de 5 litros | C14: Unid. | D14: 15 | E14: 41.86 | F14: 52 | G14: 61.49 | H14: 51.78333333 | I14: 776.75
A15: 53 | B15: Desentupidor manual vaso sanitário | C15: Unid. | D15: 4 | E15: 8.99 | F15: 10.3 | G15: 8.99 | H15: 9.426666667 | I15: 37.70666667
A16: 54 | B16: Disco para enceradeira de 510mm | C16: Unid. | D16: 6 | E16: 51.55 | F16: 54.01 | G16: 48.9 | H16: 51.48666667 | I16: 308.92
A17: 57 | B17: Esponja dupla face verde/amarelo | C17: Unid. | D17: 24 | E17: 0.99 | F17: 2.79 | G17: 2.9 | H17: 2.226666667 | I17: 53.44
A18: 58 | B18: Estopa branca super extra, 100% algodão-400g | C18: Pacote | D18: 30 | E18: 4.99 | F18: 6.99 | G18: 2.99 | H18: 4.99 | I18: 149.7
A19: 59 | B19: Fibra limpeza pesada | C19: Unid. | D19: 10 | E19: 4 | F19: 5 | G19: 2.79 | H19: 3.93 | I19: 39.3
A20: 60 | B20: Fita zebrada | C20: Unid. | D20: 1 | E20: 14.7 | F20: 13.9 | G20: 16.2 | H20: 14.93333333 | I20: 14.93333333
A21: 61 | B21: Flanela - 28x38cm, cor branca | C21: Unid. | D21: 20 | E21: 2.6 | F21: 2.26 | G21: 3.5 | H21: 2.786666667 | I21: 55.73333333
A22: 62 | B22: Flanela - 28x38 cm, cor amarela | C22: Unid. | D22: 20 | E22: 1.47 | F22: 2.26 | G22: 1.71 | H22: 1.813333333 | I22: 36.26666667
A23: 63 | B23: Impermeabilizante antiderrapante para piso granitina, galão de 5 litros | C23: Unid. | D23: 10 | E23: 149.9 | F23: 139.9 | G23: 131 | H23: 140.2666667 | I23: 1402.666667
A24: 67 | B24: Luvas reforçadas compridas –Látex | C24: Unid. | D24: 10 | E24: 11.99 | F24: 19.51 | G24: 20.69 | H24: 17.39666667 | I24: 173.9666667
A25: 68 | B25: Limpa vidros concentrados, galão de 5 litros | C25: Unid. | D25: 2 | E25: 44.9 | F25: 27.9 | G25: 29.99 | H25: 34.26333333 | I25: 68.52666667
A26: 69 | B26: Mangueira de jardim - 50 metros | C26: Unid. | D26: 1 | E26: 103 | F26: 137.12 | G26: 110 | H26: 116.7066667 | I26: 116.7066667
A27: 72 | B27: Produto de límpeza biológica de caixa de gordura | C27: Unid. | D27: 2 | E27: 59.21 | F27: 62.1 | G27: 53.61 | H27: 58.30666667 | I27: 116.6133333
A28: 73 | B28: Pasta rosa de 1º qualidade | C28: Unid. | D28: 10 | E28: 6.99 | F28: 7.83 | G28: 5.91 | H28: 6.91 | I28: 69.1
A29: 74 | B29: Removedor concentrado, desengordurante, desengraxante, removedor de cera, limpador de coifas e fogões, galão de 5 Litros | C29: Unid. | D29: 8 | E29: 59.9 | F29: 54.52 | G29: 46.71 | H29: 53.71 | I29: 429.68
A30: 80 | B30: Sabão em barra de 1ª qualidade | C30: Unid. | D30: 40 | E30: 2.99 | F30: 2.49 | G30: 2.99 | H30: 2.823333333 | I30: 112.9333333
A31: 81 | B31: Sabão em pó, 1 kg | C31: Caixa | D31: 35 | E31: 6.99 | F31: 11.99 | G31: 6.49 | H31: 8.49 | I31: 297.15
A32: 82 | B32: Saco de algodão alvejado para limpeza de chão | C32: Unid. | D32: 40 | E32: 5.5 | F32: 5.98 | G32: 5.69 | H32: 5.723333333 | I32: 228.9333333
A33: 84 | B33: Saco para lixo 40 litros com 100 unidades - reforçado | C33: Pacote | D33: 10 | E33: 50.03 | F33: 36.25 | G33: 54.02 | H33: 46.76666667 | I33: 467.6666667
A34: 85 | B34: Saco para lixo 60 litros com 100 unidades - reforçado | C34: Pacote | D34: 10 | E34: 48.75 | F34: 38.18 | G34: 56.51 | H34: 47.81333333 | I34: 478.1333333
A35: 86 | B35: Saco para lixo 100 litros com 100 unidades - reforçado | C35: Pacote | D35: 10 | E35: 25.06 | F35: 30.4 | G35: 48.75 | H35: 34.73666667 | I35: 347.3666667
A36: 87 | B36: Saco para lixo 200 litros com 100 unidades - reforçado | C36: Pacote | D36: 10 | E36: 87.9 | F36: 69.9 | G36: 109 | H36: 88.93333333 | I36: 889.3333333
A37: 89 | B37: Tela odorizadora para mictório com pedra tira grude | C37: Unid. | D37: 30 | E37: 11 | F37: 11.4 | G37: 12.15 | H37: 11.51666667 | I37: 345.5
A38: 95 | B38: Água Sanitária de 1ª qualidade, galão de 05 litros | C38: Fardo | D38: 15 | E38: 23.81 | F38: 15.16 | G38: 10.2 | H38: 16.39 | I38: 245.85
A39: 79 | B39: Sabão concentrado, limpeza pesada, galão de 5 litros | C39: Unid. | D39: 2 | E39: 31.99 | F39: 55.99 | G39: 58.45 | H39: 48.81 | I39: 97.62
A40: 100 | B40: Desentupidor manual de pia | C40: Unid. | D40: 1 | E40: 9.8 | F40: 9.8 | G40: 6.91 | H40: 8.836666667 | I40: 8.836666667
A41: 104 | B41: Limpador multiuso (veja ou similar) | C41: Unid. | D41: 60 | E41: 6.9 | F41: 5.89 | G41: 6.99 | H41: 6.593333333 | I41: 395.6
A42: 107 | B42: Pano de copa, felpudo (tipo perfex)-embalagem com 5 unidades | C42: Unid. | D42: 10 | E42: 3.39 | F42: 5 | G42: 9.99 | H42: 6.126666667 | I42: 61.26666667
A43: 109 | B43: Sabão de barra de 1ª qualidade | C43: Unid. | D43: 5 | E43: 2.99 | F43: 2.49 | G43: 2.99 | H43: 2.823333333 | I43: 14.11666667
A44: 110 | B44: Sabão em pó,1kg | C44: Unid. | D44: 5 | E44: 6.99 | F44: 11.99 | G44: 6.49 | H44: 8.49 | I44: 42.45
F45: MENSAL | G45: =I45/12 -> 2247.849722 | H45: ANUAL | I45: =SUM(I3:I44) -> 26974.19667
A47: LIMPEZA E CONSERVAÇÃO - RELAÇÃO MINIMA ESTIMADA ANUAL | C47: Unidade de medida | D47: Quantidade | E47: Preço 1 | F47: Preço 2 | G47: Preço 3 | H47: Média | I47: Valor final
A48: 46 | B48: Álcool 46 ° C de 1º qualidade | C48: Unid. | D48: 2 | E48: 19.89 | F48: 12.82 | G48: 10.9 | H48: =(E48+F48+G48)/3 -> 14.53666667 | I48: =H48*D48 -> 29.07333333
A49: 97 | B49: Balde plástico reforçado de 12 litros | C49: Unid. | D49: 4 | E49: 20.15 | F49: 14.9 | G49: 16.12 | H49: 17.05666667 | I49: 68.22666667
A50: 55 | B50: Escova manual com cerdas de nylon | C50: Unid. | D50: 16 | E50: 4.36 | F50: 4.18 | G50: 4.9 | H50: 4.48 | I50: 71.68
A51: 56 | B51: Escova sanitária com suporte | C51: Unid. | D51: 20 | E51: 16.25 | F51: 8.99 | G51: 10.43 | H51: 11.89 | I51: 237.8
A52: 70 | B52: Máscara contra pó e odores | C52: Unid. | D52: 40 | E52: 1.58 | F52: 1.86 | G52: 0.95 | H52: 1.463333333 | I52: 58.53333333
A53: 71 | B53: Pá de lixo coletora plástica (com cabo e borracha na ponta) | C53: Unid. | D53: 40 | E53: 23 | F53: 29.69 | G53: 29.9 | H53: 27.53 | I53: 1101.2
A54: 75 | B54: Rodo limpa vidro, com 25 cm de largura, com cabo | C54: Unid. | D54: 6 | E54: 41.6 | F54: 80.08 | G54: 74.99 | H54: 65.55666667 | I54: 393.34
A55: 77 | B55: Rodo com 60 cm de largura, com cabo | C55: Unid. | D55: 50 | E55: 12.8 | F55: 9.9 | G55: 16.9 | H55: 13.2 | I55: 660
A56: 78 | B56: Rodo com 90 cm de largura, com cabo | C56: Unid. | D56: 50 | E56: 35 | F56: 38.94 | G56: 27.59 | H56: 33.84333333 | I56: 1692.166667
A57: 83 | B57: Saco para aspirador de pó | C57: Unid. | D57: 10 | E57: 29.9 | F57: 19.68 | G57: 23.92 | H57: 24.5 | I57: 245
A58: 88 | B58: Suporte para fibra abrasiva | C58: Unid. | D58: 10 | E58: 26 | F58: 17.9 | G58: 24.95 | H58: 22.95 | I58: 229.5
A59: 90 | B59: Vassoura de pelo sintético de 40 cm, com cabo | C59: Unid. | D59: 30 | E59: 20.06 | F59: 25.55 | G59: 12.5 | H59: 19.37 | I59: 581.1
A60: 91 | B60: Vassoura de pêlo sintético de 60 cm, com cabo | C60: Unid. | D60: 30 | E60: 19.01 | F60: 27.99 | G60: 27.99 | H60: 24.99666667 | I60: 749.9
A61: 92 | B61: Vassoura de pêlo sintético de 90 cm, com cabo | C61: Unid. | D61: 30 | E61: 95.39 | F61: 124.01 | G61: 83.7 | H61: 101.0333333 | I61: 3031
A62: 93 | B62: Vassoura de piaçava de 40 cm | C62: Unid. | D62: 40 | E62: 28.82 | F62: 24.9 | G62: 30.99 | H62: 28.23666667 | I62: 1129.466667
F63: MENSAL | G63: =I63/12 -> 856.4988889 | H63: ANUAL | I63: =SUM(I48:I62) -> 10277.98667
A65: COPEIRA - RELAÇÃO MINIMA ESTIMADA MENSAL | C65: Unidade de medida | D65: Quantidade | E65: Preço 1 | F65: Preço 2 | G65: Preço 3 | H65: Média | I65: Valor final
A66: 114 | B66: agua sanitaria 1 litro | D66: 4 | E66: 4.09 | F66: 1.89 | G66: 5 | H66: =(E66+F66+G66)/3 -> 3.66 | I66: =H66*D66 -> 14.64
A67: 113 | B67: alcool 70 de 1a qualidade | D67: 36 | E67: 8.16 | F67: 7.19 | G67: 5.99 | H67: 7.113333333 | I67: 256.08
A68: 99 | B68: Detergente líquido neutro biodegradável de 1ª qualidade, para utilização nas copas (minuano ou similar) | C68: Unid. | D68: 60 | E68: 4.99 | F68: 3.2 | G68: 2.55 | H68: 3.58 | I68: 214.8
A69: 101 | B69: Esponja face verde/amarelo com manta abrasiva | C69: Unid. | D69: 24 | E69: 0.99 | F69: 2.79 | G69: 2.9 | H69: 2.226666667 | I69: 53.44
A70: 102 | B70: Lã de aço (Bombril ou similar) | C70: Unid. | D70: 10 | E70: 4.03 | F70: 4.43 | G70: 3.64 | H70: 4.033333333 | I70: 40.33333333
A71: 103 | B71: Luvas de látex (par) | C71: Unid. | D71: 5 | E71: 5 | F71: 3.7 | G71: 4.9 | H71: 4.533333333 | I71: 22.66666667
A72: 65 | B72: Limpador multiuso (veja ou similar) | C72: Unid. | D72: 8 | E72: 6.9 | F72: 5.89 | G72: 6.99 | H72: 6.593333333 | I72: 52.74666667
A73: 105 | B73: Papel toalha-rolo- 2000 unidades | C73: Unid. | D73: 20 | E73: 42.76 | F73: 78.9 | G73: 45.9 | H73: 55.85333333 | I73: 1117.066667
A74: 106 | B74: Pano de prato de 1ª qualidade | C74: Unid. | D74: 8 | E74: 5.51 | F74: 3.65 | G74: 4.89 | H74: 4.683333333 | I74: 37.46666667
A75: 61 | B75: Flanela - 28x38cm, cor branca | C75: Unid. | D75: 5 | E75: 2.6 | F75: 2.26 | G75: 3.5 | H75: 2.786666667 | I75: 13.93333333
A76: 80 | B76: Sabão em barra de 1ª qualidade | C76: Unid. | D76: 8 | E76: 2.99 | F76: 2.49 | G76: 2.99 | H76: 2.823333333 | I76: 22.58666667
A77: 81 | B77: Sabão em pó, 1 kg | C77: Caixa | D77: 5 | E77: 6.99 | F77: 11.99 | G77: 6.49 | H77: 8.49 | I77: 42.45
A78: 111 | B78: Saponáceo líquido cremoso | C78: Unid. | D78: 4 | E78: 8.79 | F78: 7.6 | G78: 13.89 | H78: 10.09333333 | I78: 40.37333333
F79: MENSAL | G79: =I79/12 -> 160.7152778 | H79: ANUAL | I79: =SUM(I66:I78) -> 1928.583333
A81: COPEIRA - RELAÇÃO MINIMA ESTIMADA ANUAL | C81: Unidade de medida | D81: Quantidade | E81: Preço 1 | F81: Preço 2 | G81: Preço 3 | H81: Média | I81: Valor final
A82: 98 | B82: Coador de café de pano para máquina industrial, 10 litros | C82: Unid. | D82: 40 | E82: 38.8 | F82: 28.95 | G82: 34.9 | H82: =(E82+F82+G82)/3 -> 34.21666667 | I82: =H82*D82 -> 1368.666667
A83: 108 | B83: Rodo de pia | C83: Unid. | D83: 15 | E83: 6.9 | F83: 6.9 | G83: 7.99 | H83: =(E83+F83+G83)/3 -> 7.263333333 | I83: =H83*D83 -> 108.95
A84: 76 | B84: Rodo com 40 cm de largura, com cabo | C84: Unid. | D84: 4 | E84: 18.69 | F84: 9.29 | G84: 15.9 | H84: =(E84+F84+G84)/3 -> 14.62666667 | I84: =H84*D84 -> 58.50666667
A85: 115 | B85: suporte para sabao e bucha | C85: Unid. | D85: 8 | E85: 39.9 | F85: 26.54 | G85: 34.9 | H85: =(E85+F85+G85)/3 -> 33.78 | I85: =H85*D85 -> 270.24
A86: 112 | B86: Saco de algodão alvejado branco para limpeza de chão | C86: Unid. | D86: 12 | E86: 5.5 | F86: 5.98 | G86: 5.69 | H86: =(E86+F86+G86)/3 -> 5.723333333 | I86: =H86*D86 -> 68.68
F87: MENSAL | G87: =I87/12 -> 156.2536111 | H87: ANUAL | I87: =SUM(I82:I86) -> 1875.043333
A89: JARDINEIRO - RELAÇÃO ESTIMADA ANUAL | C89: Unidade de medida | D89: Quantidade | E89: Preço 1 | F89: Preço 2 | G89: Preço 3 | H89: Média | I89: Valor final
A90: 116 | B90: Enxada em aço carbono com cabo | C90: Unid. | D90: 2 | E90: 56.92 | F90: 68.59 | G90: 49.2 | H90: =(E90+F90+G90)/3 -> 58.23666667 | I90: =H90*D90 -> 116.4733333
A91: 117 | B91: Enxadão com cabo | C91: Unid. | D91: 2 | E91: 65.93 | F91: 52.91 | G91: 34.68 | H91: =(E91+F91+G91)/3 -> 51.17333333 | I91: =H91*D91 -> 102.3466667
A92: 118 | B92: Picareta ponta e pá estreita c/cabo | C92: Unid. | D92: 1 | E92: 109.22 | F92: 92.9 | G92: 98.51 | H92: 100.21 | I92: 100.21
A93: 119 | B93: Picareta pá larga e machado tipo chibanca c/cabo | C93: Unid. | D93: 1 | E93: 78.99 | F93: 90.9 | G93: 105.69 | H93: 91.86 | I93: 91.86
A94: 120 | B94: Cavadeira articulada com cabo | C94: Unid. | D94: 1 | E94: 38.37 | F94: 59.38 | G94: 65.75 | H94: 54.5 | I94: 54.5
A95: 121 | B95: Cultivador duplo manual de 3 pontas e enxadinha | C95: Unid. | D95: 1 | E95: 29.9 | F95: 27.9 | G95: 46.41 | H95: 34.73666667 | I95: 34.73666667
A96: 122 | B96: Pazinha larga | C96: Unid. | D96: 1 | E96: 18.9 | F96: 24.8 | G96: 9.9 | H96: 17.86666667 | I96: 17.86666667
A97: 123 | B97: Pá transplantadora (de mão) | C97: Unid. | D97: 1 | E97: 11.6 | F97: 15.13 | G97: 20.28 | H97: 15.67 | I97: 15.67
A98: 124 | B98: Pá quadrada com cabo tipo "Y" | C98: Unid. | D98: 1 | E98: 69.9 | F98: 28.99 | G98: 33.9 | H98: 44.26333333 | I98: 44.26333333
A99: 125 | B99: Pá concha com cabo tipo "Y" | C99: Unid. | D99: 1 | E99: 43.36 | F99: 54.9 | G99: 33.95 | H99: 44.07 | I99: 44.07
A100: 126 | B100: Extrator de ervas daninhas (arrancador de inço) | C100: Unid. | D100: 2 | E100: 8.99 | F100: 5.71 | G100: 17.9 | H100: 10.86666667 | I100: 21.73333333
A101: 127 | B101: Ancinho com cabo | C101: Unid. | D101: 2 | E101: 38.9 | F101: 37.57 | G101: 44.9 | H101: 40.45666667 | I101: 80.91333333 | L101: RESUMO | M101: VALOR
A102: 128 | B102: Rastelo ou vassoura de jardim larg. mín de 40cm | C102: Unid. | D102: 2 | E102: 41.9 | F102: 37.05 | G102: 31.61 | H102: 36.85333333 | I102: 73.70666667 | M102: MENSAL | N102: ANUAL
A103: 129 | B103: Tesoura para cerca-viva | C103: Unid. | D103: 1 | E103: 41.3 | F103: 40.9 | G103: 40.99 | H103: 41.06333333 | I103: 41.06333333 | L103: LIMPEZA E CONSERVAÇÃO - RELAÇÃO MINIMA ESTIMADA MENSAL | M103: =G45 -> 2247.849722 | N103: =M103*12 -> 26974.19667
A104: 130 | B104: Tesoura de poda | C104: Unid. | D104: 1 | E104: 38.06 | F104: 52 | G104: 29.9 | H104: 39.98666667 | I104: 39.98666667 | L104: LIMPEZA E CONSERVAÇÃO - RELAÇÃO MINIMA ESTIMADA ANUAL | M104: =N104/12 -> 856.4988889 | N104: =I63 -> 10277.98667
A105: 131 | B105: Canivete para enxerto | C105: Unid. | D105: 1 | E105: 21.9 | F105: 52.28 | G105: 40 | H105: 38.06 | I105: 38.06 | L105: COPEIRA - RELAÇÃO MINIMA ESTIMADA MENSAL | M105: =G79 -> 160.7152778 | N105: =M105*12 -> 1928.583333
A106: 132 | B106: Facão de 30 cm | C106: Unid. | D106: 1 | E106: 35.6 | F106: 27 | G106: 32.45 | H106: 31.68333333 | I106: 31.68333333 | L106: COPEIRA - RELAÇÃO MINIMA ESTIMADA ANUAL | M106: =N106/12 -> 156.2536111 | N106: =I87 -> 1875.043333
A107: 133 | B107: Serrote de poda | C107: Unid. | D107: 1 | E107: 40.9 | F107: 23.74 | G107: 28.9 | H107: 31.18 | I107: 31.18 | L107: JARDINAGEM | M107: =N107/12 -> 2028.123472 | N107: =I137 -> 24337.48167
A108: 134 | B108: Lima para amolar ferramentas de corte | C108: Unid. | D108: 1 | E108: 14.18 | F108: 14.8 | G108: 13.5 | H108: 14.16 | I108: 14.16 | L108: TOTAL | M108: =SUM(M103:M106) -> 3421.3175 | N108: =SUM(N103:N107) -> 65393.29167
A109: 135 | B109: Regador de 10 litros | C109: Unid. | D109: 4 | E109: 27.46 | F109: 24.15 | G109: 19.9 | H109: 23.83666667 | I109: 95.34666667
A110: 136 | B110: Balde para pedreiro | C110: Unid. | D110: 2 | E110: 16.12 | F110: 19.9 | G110: 15.29 | H110: 17.10333333 | I110: 34.20666667
A111: 137 | B111: Carrinho de mão com caçamba de no mín 80 litros e pneu com câmara de ar | C111: Unid. | D111: 2 | E111: 369.9 | F111: 499 | G111: 307.9 | H111: 392.2666667 | I111: 784.5333333
A112: 138 | B112: Carrinho plataforma para transposte de vasos | C112: Unid. | D112: 1 | E112: 859.9 | F112: 769.09 | G112: 699.9 | H112: 776.2966667 | I112: 776.2966667
A113: 139 | B113: Martelo universal | C113: Unid. | D113: 1 | E113: 22.54 | F113: 19.9 | G113: 27.22 | H113: 23.22 | I113: 23.22
A114: 140 | B114: Grampeador de alta pressão com grampos | C114: Unid. | D114: 1 | E114: 33.22 | F114: 51.19 | G114: 35.19 | H114: 39.86666667 | I114: 39.86666667
A115: 141 | B115: Alicate universal de 8" | C115: Unid. | D115: 1 | E115: 27.9 | F115: 30.15 | G115: 19.79 | H115: 25.94666667 | I115: 25.94666667
A116: 142 | B116: Pulverizador de 5 litros | C116: Unid. | D116: 1 | E116: 70.79 | F116: 5447 | G116: 78.9 | H116: 1865.563333 | I116: 1865.563333
A117: 143 | B117: Pulverizador agrícola costal de 20litros | C117: Unid. | D117: 1 | E117: 133 | F117: 177.9 | G117: 118.85 | H117: 143.25 | I117: 143.25
A118: 145 | B118: Cortador de grama de 3cv, 220 Volts, com recolhetor de grama, pintura de poliéster polimerizado e diâmetro de corte de 48cm. | C118: Unid. | D118: 1 | E118: 770 | F118: 459.9 | G118: 999 | H118: 742.9666667 | I118: 742.9666667
A119: 146 | B119: Roçadeira de motor 4 tempos c/ potência acima 2 Hp peso máx. de 8 kg, sistema de alívio da vibração, adaptador para fio de nylon, faca e serra circular | C119: Unid. | D119: 1 | E119: 1279 | F119: 1064.58 | G119: 1387 | H119: 1243.526667 | I119: 1243.526667
A120: 147 | B120: Moto-serra c/ potência superior a 2,1 Hp, peso máx. de 6kg e sabre de no mín 33cm e dispositivo de segurança | C120: Unid. | D120: 1 | E120: 1398 | F120: 949.05 | G120: 599 | H120: 982.0166667 | I120: 982.0166667
A121: 148 | B121: Cal pura micro pulverizada saco de 20 kg | C121: SC | D121: 2 | E121: 78.9 | F121: 84.9 | H121: =(E121+F121+G121)/2 -> 81.9 | I121: 163.8
A122: 149 | B122: Gesso agrícola | C122: TON | D122: 2 | E122: 807 | F122: 170 | H122: =(E122+F122+G122)/2 -> 488.5 | I122: 977
A123: 150 | B123: Calcário dolomítico | C123: TON | D123: 2 | E123: 125 | H123: =(E123+F123+G123) -> 125 | I123: 250
A124: 151 | B124: Termosfofato magnesiano saco de 40 kg | C124: SC | D124: 2 | E124: 350 | F124: 213 | G124: 192.9 | H124: 251.9666667 | I124: 503.9333333
A125: 152 | B125: Adubo formulado 4-30-16 saco de 50 kg | C125: SC | D125: 3 | E125: 261 | H125: =(E125+F125+G125) -> 261 | I125: 783
A126: 153 | B126: Adubo formulado 10-10-10 saco de 50 kg | C126: SC | D126: 1 | E126: 246.4 | F126: 196 | G126: 115.9 | H126: 186.1 | I126: 186.1
A127: 154 | B127: Esterco de gado | C127: MT³ | D127: 5 | E127: 75 | H127: =(E127+F127+G127) -> 75 | I127: 375
A128: 156 | B128: Arame galvanizado | C128: KG | D128: 3 | E128: 13.9 | F128: 22.6 | G128: 14.29 | H128: 16.93 | I128: 50.79
A129: 157 | B129: Micronutriente FTE – BR 12 (50 Kg) (25Kg) | C129: SC | D129: 3 | E129: 204.25 | F129: 395.9 | G129: 171.9 | H129: 257.35 | I129: 772.05
A130: 158 | B130: Cupinicida granulado | C130: KG | D130: 3 | E130: 22.98 | F130: 22 | H130: =(E130+F130+G130)/2 -> 22.49 | I130: 67.47
A131: 159 | B131: Formicida isca granulada 500 gr | C131: PCT | D131: 3 | E131: 19.99 | F131: 18.4 | G131: 10 | H131: 16.13 | I131: 48.39
A132: 160 | B132: Herbicida de contato | C132: LT | D132: 3 | E132: 22.9 | F132: 68.75 | H132: =(E132+F132+G132)/2 -> 45.825 | I132: 137.475
A133: 161 | B133: Herbicida seletivo (60 ml) | C133: LT | D133: 5 | E133: 60.03 | F133: 63.84 | G133: 51.9 | H133: 58.59 | I133: 292.95
A134: 162 | B134: Raticida bloco parafinado | C134: KG | D134: 5 | E134: 149.9 | F134: 120 | G134: 81.9 | H134: 117.2666667 | I134: 586.3333333
A135: 163 | B135: Brocha quadrada | C135: PÇ | D135: 5 | E135: 18.29 | F135: 12.49 | G135: 8.4 | H135: 13.06 | I135: 65.3
A136: 164 | B136: Placa grama esmeralda 60x40 cm | C136: uni | D136: 200 | E136: 100 | F136: 69.9 | G136: 0 | H136: 56.63333333 | I136: 11326.66667
F137: MENSAL | G137: =I137/12 -> 2028.123472 | H137: ANUAL | I137: =SUM(I90:I136) -> 24337.48167
